[Event "Live Chess"]
[Site "Chess.com"]
[Date "2021.02.10"]
[Round "1"]
[White "powerofapoint"]
[Black "3Ke31-0"]
[Result "0-1"]
[CurrentPosition "8/p3k3/4P3/8/4K3/q7/8/8 w - -"]
[Timezone "UTC"]
[ECO "D12"]
[ECOUrl "https://www.chess.com/openings/Slav-Defense-Modern-Quiet-Schallopp-Defense-5.Nc3-e6"]
[UTCDate "2021.02.10"]
[UTCTime "02:30:43"]
[WhiteElo "2117"]
[BlackElo "1970"]
[TimeControl "2100+2"]
[Termination "3Ke31-0 won by resignation"]
[StartTime "02:30:43"]
[EndDate "2021.02.10"]
[EndTime "03:42:59"]
[Link "https://www.chess.com/live/game/6507732666"]

1. d4 {[%clk 0:35:02]} 1... d5 {[%clk 0:35:00.8]} 2. c4 {[%clk 0:35:01.5]} 2... c6 {[%clk 0:34:59.4]} 3. Nf3 {[%clk 0:35:00.6]} 3... Nf6 {[%clk 0:34:58]} 4. e3 {[%clk 0:34:58.9]} 4... Bf5 {[%clk 0:34:39.6]} 5. Nc3 {[%clk 0:34:52]} 5... e6 {[%clk 0:34:36.2]} 6. cxd5 {[%clk 0:34:23.3]} 6... exd5 {[%clk 0:34:34.5]} 7. Bd3 {[%clk 0:34:14]} 7... Bg6 {[%clk 0:33:28.7]} 8. O-O {[%clk 0:33:50.7]} 8... Bd6 {[%clk 0:33:19.1]} 9. Re1 {[%clk 0:32:58.2]} 9... O-O {[%clk 0:32:45]} 10. Bxg6 {[%clk 0:32:17.4]} 10... hxg6 {[%clk 0:32:42.8]} 11. a3 {[%clk 0:31:31.8]} 11... Nbd7 {[%clk 0:31:40]} 12. b4 {[%clk 0:29:50.6]} 12... Re8 {[%clk 0:30:51.1]} 13. Bb2 {[%clk 0:28:45.8]} 13... Ne4 {[%clk 0:29:53.1]} 14. Nxe4 {[%clk 0:28:01.6]} 14... dxe4 {[%clk 0:28:54.7]} 15. Nd2 {[%clk 0:27:59.3]} 15... Nb6 {[%clk 0:28:54.1]} 16. Qg4 {[%clk 0:26:09.9]} 16... Re6 {[%clk 0:28:14.7]} 17. Rac1 {[%clk 0:24:55.6]} 17... f5 {[%clk 0:27:59.5]} 18. Qe2 {[%clk 0:24:07.5]} 18... Nd5 {[%clk 0:27:43.3]} 19. f4 {[%clk 0:22:14.3]} 19... g5 {[%clk 0:20:56.9]} 20. fxg5 {[%clk 0:20:38]} 20... Qxg5 {[%clk 0:20:42]} 21. Nf1 {[%clk 0:19:27.6]} 21... f4 {[%clk 0:19:08.1]} 22. Rc2 {[%clk 0:15:40.8]} 22... Rf8 {[%clk 0:18:11.5]} 23. exf4 {[%clk 0:13:46.5]} 23... Nxf4 {[%clk 0:15:34.9]} 24. Qe3 {[%clk 0:12:38.2]} 24... Qh4 {[%clk 0:13:31.8]} 25. g3 {[%clk 0:08:13.4]} 25... Nh3+ {[%clk 0:13:25.7]} 26. Kg2 {[%clk 0:07:42.5]} 26... Qg4 {[%clk 0:13:15.2]} 27. Kh1 {[%clk 0:06:37.1]} 27... Rf3 {[%clk 0:12:42.3]} 28. Qe2 {[%clk 0:04:52]} 28... Nf2+ {[%clk 0:10:44.4]} 29. Qxf2 {[%clk 0:03:56.4]} 29... Rxf2 {[%clk 0:10:41.8]} 30. Rxf2 {[%clk 0:03:57]} 30... Rh6 {[%clk 0:08:31.7]} 31. Kg1 {[%clk 0:03:38.5]} 31... Rf6 {[%clk 0:08:09.3]} 32. Ne3 {[%clk 0:03:33.1]} 32... Qg6 {[%clk 0:07:55]} 33. Rxf6 {[%clk 0:03:19.5]} 33... gxf6 {[%clk 0:07:48.3]} 34. Kg2 {[%clk 0:03:05.8]} 34... f5 {[%clk 0:07:44.1]} 35. Nc4 {[%clk 0:01:55.4]} 35... Bc7 {[%clk 0:07:18.3]} 36. Kh1 {[%clk 0:01:31.4]} 36... Qh5 {[%clk 0:07:08.8]} 37. Ne5 {[%clk 0:01:26.8]} 37... Bxe5 {[%clk 0:06:52.9]} 38. dxe5 {[%clk 0:01:28.7]} 38... Qf3+ {[%clk 0:06:42.7]} 39. Kg1 {[%clk 0:01:30]} 39... Qb3 {[%clk 0:05:33]} 40. Re2 {[%clk 0:01:24.7]} 40... e3 {[%clk 0:05:08]} 41. Kg2 {[%clk 0:01:14.5]} 41... Qd5+ {[%clk 0:05:08.6]} 42. Kh3 {[%clk 0:01:03.2]} 42... Qf3 {[%clk 0:05:07.4]} 43. Re1 {[%clk 0:00:57.3]} 43... e2 {[%clk 0:04:47.3]} 44. Bc3 {[%clk 0:00:35.6]} 44... Qxc3 {[%clk 0:04:07.3]} 45. Rxe2 {[%clk 0:00:36.1]} 45... Qf3 {[%clk 0:04:08.6]} 46. Re1 {[%clk 0:00:33.7]} 46... Kf7 {[%clk 0:03:58.2]} 47. e6+ {[%clk 0:00:32.4]} 47... Ke7 {[%clk 0:03:58.6]} 48. Re5 {[%clk 0:00:32.1]} 48... Qg4+ {[%clk 0:03:07.1]} 49. Kg2 {[%clk 0:00:32.4]} 49... f4 {[%clk 0:03:04.2]} 50. Kf2 {[%clk 0:00:21.5]} 50... fxg3+ {[%clk 0:03:04.2]} 51. hxg3 {[%clk 0:00:22.2]} 51... Qd4+ {[%clk 0:03:05.2]} 52. Re3 {[%clk 0:00:22.8]} 52... b6 {[%clk 0:02:10.7]} 53. Kf3 {[%clk 0:00:18.3]} 53... c5 {[%clk 0:02:10.6]} 54. bxc5 {[%clk 0:00:17.8]} 54... bxc5 {[%clk 0:02:12.5]} 55. g4 {[%clk 0:00:18.8]} 55... c4 {[%clk 0:02:11.5]} 56. g5 {[%clk 0:00:18.2]} 56... c3 {[%clk 0:02:10.8]} 57. g6 {[%clk 0:00:17.4]} 57... c2 {[%clk 0:02:11.4]} 58. g7 {[%clk 0:00:12.3]} 58... Qxg7 {[%clk 0:02:11.7]} 59. Re1 {[%clk 0:00:08.9]} 59... Qc3+ {[%clk 0:02:12.3]} 60. Re3 {[%clk 0:00:08.9]} 60... c1=Q {[%clk 0:02:11.6]} 61. Rxc3 {[%clk 0:00:09.3]} 61... Qxc3+ {[%clk 0:02:13.5]} 62. Ke4 {[%clk 0:00:10.3]} 62... Qxa3 {[%clk 0:02:14.9]} 0-1

[Event "Live Chess"]
[Site "Chess.com"]
[Date "2021.02.10"]
[Round "1"]
[White "TNM2021"]
[Black "stratus_junior"]
[Result "0-1"]
[CurrentPosition "2Q5/p4pkp/2p3p1/8/3b3N/6PP/P2r1qBK/8 w - -"]
[Timezone "UTC"]
[ECO "D11"]
[ECOUrl "https://www.chess.com/openings/Slav-Defense-Modern-Line-3...Nf6-4.Qc2-g6"]
[UTCDate "2021.02.10"]
[UTCTime "02:30:46"]
[WhiteElo "1545"]
[BlackElo "1974"]
[TimeControl "2100+2"]
[Termination "stratus_junior won by resignation"]
[StartTime "02:30:46"]
[EndDate "2021.02.10"]
[EndTime "03:19:17"]
[Link "https://www.chess.com/live/game/6507732893"]

1. d4 {[%clk 0:34:50.3]} 1... d5 {[%clk 0:35:00.3]} 2. c4 {[%clk 0:34:50.4]} 2... c6 {[%clk 0:35:01.6]} 3. Nf3 {[%clk 0:34:49]} 3... Nf6 {[%clk 0:35:02.3]} 4. Qc2 {[%clk 0:34:49.5]} 4... g6 {[%clk 0:34:31.1]} 5. g3 {[%clk 0:34:49.4]} 5... Bg7 {[%clk 0:32:43.3]} 6. Bg2 {[%clk 0:33:46.2]} 6... O-O {[%clk 0:31:27.6]} 7. O-O {[%clk 0:33:43.8]} 7... Bf5 {[%clk 0:31:28.4]} 8. Qb3 {[%clk 0:33:42.7]} 8... Qc8 {[%clk 0:31:27.5]} 9. Nbd2 {[%clk 0:31:04.8]} 9... Nbd7 {[%clk 0:31:13.8]} 10. Rd1 {[%clk 0:29:20.6]} 10... Re8 {[%clk 0:26:28.3]} 11. Nh4 {[%clk 0:24:37.1]} 11... Bg4 {[%clk 0:25:23.3]} 12. h3 {[%clk 0:23:21.8]} 12... Bxe2 {[%clk 0:24:48.8]} 13. Re1 {[%clk 0:23:21.2]} 13... Bxc4 {[%clk 0:24:30.8]} 14. Nxc4 {[%clk 0:23:22]} 14... dxc4 {[%clk 0:24:32.7]} 15. Qxc4 {[%clk 0:23:22.8]} 15... e5 {[%clk 0:20:24]} 16. dxe5 {[%clk 0:23:03.6]} 16... Nxe5 {[%clk 0:20:14.9]} 17. Qc3 {[%clk 0:22:52.3]} 17... Nd5 {[%clk 0:19:58.6]} 18. Qd2 {[%clk 0:22:44.6]} 18... Nc4 {[%clk 0:18:26.7]} 19. Rxe8+ {[%clk 0:21:30.4]} 19... Qxe8 {[%clk 0:18:28.6]} 20. Qd1 {[%clk 0:21:26]} 20... Nxb2 {[%clk 0:17:42.8]} 21. Bxb2 {[%clk 0:21:23.7]} 21... Bxb2 {[%clk 0:17:44.7]} 22. Rb1 {[%clk 0:21:24.4]} 22... Nc3 {[%clk 0:17:42.1]} 23. Qc2 {[%clk 0:21:09.8]} 23... Nxb1 {[%clk 0:17:41.3]} 24. Qxb1 {[%clk 0:21:10.3]} 24... Qe2 {[%clk 0:16:12.4]} 25. Bf3 {[%clk 0:20:27]} 25... Qe5 {[%clk 0:16:10.2]} 26. Kg2 {[%clk 0:20:01.6]} 26... Rd8 {[%clk 0:16:01.9]} 27. Qc2 {[%clk 0:19:38.5]} 27... Bc3 {[%clk 0:15:39]} 28. Qb3 {[%clk 0:17:43]} 28... Rd2 {[%clk 0:14:47.7]} 29. Qxb7 {[%clk 0:12:55.4]} 29... Qe3 {[%clk 0:14:42.1]} 30. Qc8+ {[%clk 0:12:21]} 30... Kg7 {[%clk 0:14:37.8]} 31. Kh2 {[%clk 0:11:20.5]} 31... Qxf2+ {[%clk 0:14:08.4]} 32. Bg2 {[%clk 0:11:05.1]} 32... Bd4 {[%clk 0:13:21.7]} 0-1

[Event "Live Chess"]
[Site "Chess.com"]
[Date "2021.02.10"]
[Round "1"]
[White "ninjaforce"]
[Black "chessappeals"]
[Result "1-0"]
[CurrentPosition "1k2r3/ppp5/3pB3/6p1/8/P1P2P2/1PP3P1/1K5R b - -"]
[Timezone "UTC"]
[ECO "C42"]
[ECOUrl "https://www.chess.com/openings/Petrovs-Defense-Classical-Nimzowitsch-Attack"]
[UTCDate "2021.02.10"]
[UTCTime "02:31:04"]
[WhiteElo "1977"]
[BlackElo "1490"]
[TimeControl "2100+2"]
[Termination "ninjaforce won by resignation"]
[StartTime "02:31:04"]
[EndDate "2021.02.10"]
[EndTime "03:05:07"]
[Link "https://www.chess.com/live/game/6507734081"]

1. e4 {[%clk 0:35:00.3]} 1... e5 {[%clk 0:34:56.5]} 2. Nf3 {[%clk 0:34:59.5]} 2... Nf6 {[%clk 0:34:48.9]} 3. Nxe5 {[%clk 0:34:30.4]} 3... d6 {[%clk 0:34:47]} 4. Nf3 {[%clk 0:34:30.9]} 4... Nxe4 {[%clk 0:34:45.7]} 5. Nc3 {[%clk 0:34:29.3]} 5... Nxc3 {[%clk 0:34:44.3]} 6. dxc3 {[%clk 0:34:31.2]} 6... Be7 {[%clk 0:34:37.5]} 7. Be3 {[%clk 0:33:52.3]} 7... Nc6 {[%clk 0:34:22.7]} 8. Qd2 {[%clk 0:32:56.8]} 8... Be6 {[%clk 0:34:08.7]} 9. O-O-O {[%clk 0:32:28]} 9... Qd7 {[%clk 0:33:44.2]} 10. Kb1 {[%clk 0:32:22.7]} 10... Bf6 {[%clk 0:33:31.8]} 11. h4 {[%clk 0:28:46]} 11... h6 {[%clk 0:33:15.2]} 12. Nd4 {[%clk 0:27:34.6]} 12... Nxd4 {[%clk 0:32:50.6]} 13. Bxd4 {[%clk 0:27:30.6]} 13... O-O-O {[%clk 0:28:48.5]} 14. Bxf6 {[%clk 0:26:51.8]} 14... gxf6 {[%clk 0:28:47.4]} 15. Qd4 {[%clk 0:26:50.2]} 15... Kb8 {[%clk 0:27:59.5]} 16. Qxf6 {[%clk 0:26:05.8]} 16... Qa4 {[%clk 0:26:25.4]} 17. a3 {[%clk 0:25:25.1]} 17... Qg4 {[%clk 0:25:17.7]} 18. f3 {[%clk 0:24:01.2]} 18... Qg6 {[%clk 0:24:10.6]} 19. Qxg6 {[%clk 0:22:50.7]} 19... fxg6 {[%clk 0:24:08.4]} 20. Bd3 {[%clk 0:22:52.3]} 20... g5 {[%clk 0:22:21.7]} 21. Rde1 {[%clk 0:21:05.4]} 21... Rhe8 {[%clk 0:19:06.2]} 22. hxg5 {[%clk 0:20:28.2]} 22... hxg5 {[%clk 0:19:00.8]} 23. Bg6 {[%clk 0:20:26.3]} 23... Re7 {[%clk 0:18:40.7]} 24. Bf5 {[%clk 0:20:23.9]} 24... Rde8 {[%clk 0:18:20.3]} 25. Rxe6 {[%clk 0:20:19.8]} 25... Rxe6 {[%clk 0:17:57.9]} 26. Bxe6 {[%clk 0:20:17.2]} 1-0

[Event "Live Chess"]
[Site "Chess.com"]
[Date "2021.02.10"]
[Round "1"]
[White "pgstar3"]
[Black "artliou"]
[Result "0-1"]
[CurrentPosition "4r1k1/1p3p2/p3p1b1/P3P3/1q1r3b/4Q3/1P4PP/1R3R1K w - -"]
[Timezone "UTC"]
[ECO "B22"]
[ECOUrl "https://www.chess.com/openings/Sicilian-Defense-Alapin-Variation-2...Nf6-3.e5-Nd5-4.Nf3"]
[UTCDate "2021.02.10"]
[UTCTime "02:31:02"]
[WhiteElo "1874"]
[BlackElo "2214"]
[TimeControl "2100+2"]
[Termination "artliou won by resignation"]
[StartTime "02:31:02"]
[EndDate "2021.02.10"]
[EndTime "03:14:21"]
[Link "https://www.chess.com/live/game/6507734319"]

1. e4 {[%clk 0:34:50.6]} 1... c5 {[%clk 0:34:59.7]} 2. c3 {[%clk 0:34:45.2]} 2... Nf6 {[%clk 0:34:58.1]} 3. e5 {[%clk 0:34:35.5]} 3... Nd5 {[%clk 0:34:58]} 4. Nf3 {[%clk 0:34:18]} 4... e6 {[%clk 0:34:54.1]} 5. d4 {[%clk 0:34:04.5]} 5... cxd4 {[%clk 0:34:52.8]} 6. cxd4 {[%clk 0:34:06.4]} 6... Nc6 {[%clk 0:34:53]} 7. Bc4 {[%clk 0:34:01.4]} 7... Nb6 {[%clk 0:34:53.1]} 8. Bb3 {[%clk 0:33:55.9]} 8... d6 {[%clk 0:34:42.5]} 9. Qe2 {[%clk 0:32:50.9]} 9... dxe5 {[%clk 0:34:24.2]} 10. dxe5 {[%clk 0:32:49.6]} 10... Bc5 {[%clk 0:34:18.5]} 11. O-O {[%clk 0:32:46.9]} 11... h6 {[%clk 0:34:11.9]} 12. Rd1 {[%clk 0:32:29.2]} 12... Qc7 {[%clk 0:34:09.2]} 13. Qe4 {[%clk 0:32:02.5]} 13... Bd7 {[%clk 0:33:58.4]} 14. a4 {[%clk 0:31:29.3]} 14... Rd8 {[%clk 0:33:31.5]} 15. Nc3 {[%clk 0:31:08.8]} 15... a6 {[%clk 0:33:16.6]} 16. Bf4 {[%clk 0:24:44.5]} 16... Na5 {[%clk 0:31:35.5]} 17. Bc2 {[%clk 0:24:25.6]} 17... Bc6 {[%clk 0:31:29.7]} 18. Qe2 {[%clk 0:23:59.7]} 18... Nd5 {[%clk 0:30:52.5]} 19. Nxd5 {[%clk 0:23:16]} 19... Bxd5 {[%clk 0:30:33.4]} 20. Rac1 {[%clk 0:22:01.5]} 20... Qb6 {[%clk 0:30:01.6]} 21. Rb1 {[%clk 0:21:16.9]} 21... Nc6 {[%clk 0:29:41.4]} 22. Nd2 {[%clk 0:18:14.9]} 22... Nd4 {[%clk 0:28:51.2]} 23. Qd3 {[%clk 0:16:03.7]} 23... Nxc2 {[%clk 0:28:44.4]} 24. Qxc2 {[%clk 0:16:05.6]} 24... Bxf2+ {[%clk 0:28:43.4]} 25. Kh1 {[%clk 0:16:01.5]} 25... O-O {[%clk 0:28:32.8]} 26. Rf1 {[%clk 0:15:19.8]} 26... Bd4 {[%clk 0:28:14.2]} 27. Nf3 {[%clk 0:14:47.8]} 27... Bc5 {[%clk 0:27:49.8]} 28. Qc1 {[%clk 0:12:42.8]} 28... Rfe8 {[%clk 0:25:41.6]} 29. Bxh6 {[%clk 0:10:29]} 29... gxh6 {[%clk 0:25:38.9]} 30. Qxh6 {[%clk 0:10:28.5]} 30... Bf8 {[%clk 0:25:40.2]} 31. Qh5 {[%clk 0:10:17]} 31... Be4 {[%clk 0:25:23.5]} 32. Qg4+ {[%clk 0:07:43.6]} 32... Bg6 {[%clk 0:25:22.5]} 33. Nh4 {[%clk 0:07:41.9]} 33... Rd4 {[%clk 0:25:11.3]} 34. Qg5 {[%clk 0:06:26.8]} 34... Be7 {[%clk 0:24:42.7]} 35. Qe3 {[%clk 0:05:43.4]} 35... Bxh4 {[%clk 0:24:33.1]} 36. a5 {[%clk 0:05:15.6]} 36... Qb4 {[%clk 0:24:22.7]} 0-1

[Event "Live Chess"]
[Site "Chess.com"]
[Date "2021.02.10"]
[Round "1"]
[White "David_Askin"]
[Black "Joseph_Truelsons_Fan"]
[Result "1-0"]
[CurrentPosition "8/7k/2b2qpp/2Q5/2B1p3/4P2P/PP3PP1/3R2K1 b - -"]
[Timezone "UTC"]
[ECO "D30"]
[ECOUrl "https://www.chess.com/openings/Queens-Gambit-Declined-3.Nf3-Nf6"]
[UTCDate "2021.02.10"]
[UTCTime "02:31:04"]
[WhiteElo "1992"]
[BlackElo "1881"]
[TimeControl "2100+2"]
[Termination "David_Askin won by resignation"]
[StartTime "02:31:04"]
[EndDate "2021.02.10"]
[EndTime "03:13:19"]
[Link "https://www.chess.com/live/game/6507734494"]

1. d4 {[%clk 0:34:52.2]} 1... d5 {[%clk 0:34:50.5]} 2. Nf3 {[%clk 0:34:52.2]} 2... Nf6 {[%clk 0:34:38.4]} 3. c4 {[%clk 0:34:51.4]} 3... e6 {[%clk 0:34:19.5]} 4. Nc3 {[%clk 0:34:51.4]} 4... Be7 {[%clk 0:34:01.3]} 5. Bg5 {[%clk 0:34:52.2]} 5... O-O {[%clk 0:33:35.1]} 6. e3 {[%clk 0:34:52.5]} 6... h6 {[%clk 0:33:28.1]} 7. Bh4 {[%clk 0:34:52]} 7... b6 {[%clk 0:33:24.7]} 8. cxd5 {[%clk 0:34:52.4]} 8... exd5 {[%clk 0:33:21.2]} 9. Rc1 {[%clk 0:34:18.7]} 9... Bb7 {[%clk 0:32:52.2]} 10. Be2 {[%clk 0:34:09.3]} 10... Nbd7 {[%clk 0:32:26.9]} 11. O-O {[%clk 0:33:44]} 11... c5 {[%clk 0:31:11.2]} 12. dxc5 {[%clk 0:32:39]} 12... bxc5 {[%clk 0:30:19]} 13. Qa4 {[%clk 0:32:26.8]} 13... Nb6 {[%clk 0:29:34.1]} 14. Qa5 {[%clk 0:32:06.9]} 14... Ne4 {[%clk 0:28:39.6]} 15. Bxe7 {[%clk 0:31:40.9]} 15... Qxe7 {[%clk 0:28:31.6]} 16. Rfd1 {[%clk 0:30:42.2]} 16... Rfd8 {[%clk 0:27:48.9]} 17. Nxe4 {[%clk 0:28:18.6]} 17... dxe4 {[%clk 0:27:26.6]} 18. Rxd8+ {[%clk 0:27:39.5]} 18... Rxd8 {[%clk 0:27:17.8]} 19. Nd2 {[%clk 0:25:46.7]} 19... Rd5 {[%clk 0:24:36.4]} 20. Nc4 {[%clk 0:21:59.2]} 20... Nxc4 {[%clk 0:18:54.6]} 21. Bxc4 {[%clk 0:22:01.1]} 21... Rh5 {[%clk 0:16:33.8]} 22. Qxa7 {[%clk 0:20:29.5]} 22... Qd6 {[%clk 0:16:14.4]} 23. h3 {[%clk 0:19:01.2]} 23... Bc6 {[%clk 0:14:58.1]} 24. Qxf7+ {[%clk 0:18:44.1]} 24... Kh7 {[%clk 0:14:33.6]} 25. Qxh5 {[%clk 0:18:43.6]} 25... g6 {[%clk 0:14:13.2]} 26. Rd1 {[%clk 0:17:44.6]} 26... Qf6 {[%clk 0:12:59.8]} 27. Qxc5 {[%clk 0:17:26.2]} 1-0

[Event "Live Chess"]
[Site "Chess.com"]
[Date "2021.02.10"]
[Round "1"]
[White "chessp1234"]
[Black "SmilyFace4"]
[Result "0-1"]
[CurrentPosition "8/8/4k3/8/1K6/5p2/8/8 w - -"]
[Timezone "UTC"]
[ECO "B15"]
[ECOUrl "https://www.chess.com/openings/Caro-Kann-Defense-Tartakower-Forgacs-Variation"]
[UTCDate "2021.02.10"]
[UTCTime "02:31:04"]
[WhiteElo "1624"]
[BlackElo "2048"]
[TimeControl "2100+2"]
[Termination "SmilyFace4 won by resignation"]
[StartTime "02:31:04"]
[EndDate "2021.02.10"]
[EndTime "03:38:23"]
[Link "https://www.chess.com/live/game/6507734641"]

1. e4 {[%clk 0:35:00.5]} 1... c6 {[%clk 0:35:00.1]} 2. d4 {[%clk 0:34:50.1]} 2... d5 {[%clk 0:34:59.7]} 3. Nc3 {[%clk 0:34:44.1]} 3... dxe4 {[%clk 0:34:59.1]} 4. Nxe4 {[%clk 0:34:39.9]} 4... Nf6 {[%clk 0:34:58.8]} 5. Nxf6+ {[%clk 0:34:32.7]} 5... exf6 {[%clk 0:35:00.7]} 6. Bc4 {[%clk 0:33:43.3]} 6... Qe7+ {[%clk 0:34:00.4]} 7. Qe2 {[%clk 0:33:24.1]} 7... Bg4 {[%clk 0:32:18]} 8. f3 {[%clk 0:30:28.3]} 8... Bf5 {[%clk 0:31:18]} 9. c3 {[%clk 0:29:31.3]} 9... Nd7 {[%clk 0:30:20.9]} 10. Bf4 {[%clk 0:27:00.8]} 10... a5 {[%clk 0:28:06.3]} 11. a4 {[%clk 0:26:24.9]} 11... Nb6 {[%clk 0:26:01.5]} 12. Bb3 {[%clk 0:26:04.9]} 12... Be6 {[%clk 0:23:51.4]} 13. Bxe6 {[%clk 0:24:35.8]} 13... Qxe6 {[%clk 0:23:53.3]} 14. Qxe6+ {[%clk 0:22:11.7]} 14... fxe6 {[%clk 0:23:51.1]} 15. Ne2 {[%clk 0:22:00.6]} 15... Nd5 {[%clk 0:21:32.8]} 16. O-O-O {[%clk 0:17:49.7]} 16... Nxf4 {[%clk 0:19:31.2]} 17. Nxf4 {[%clk 0:17:43.8]} 17... Kf7 {[%clk 0:18:21.1]} 18. Rhe1 {[%clk 0:17:34.8]} 18... Re8 {[%clk 0:16:08]} 19. Nd3 {[%clk 0:17:23.3]} 19... g5 {[%clk 0:14:52.3]} 20. Re2 {[%clk 0:15:54.1]} 20... Bd6 {[%clk 0:14:19.2]} 21. g3 {[%clk 0:15:36]} 21... h5 {[%clk 0:14:08]} 22. Rde1 {[%clk 0:14:37.3]} 22... h4 {[%clk 0:11:51.5]} 23. f4 {[%clk 0:13:36.6]} 23... hxg3 {[%clk 0:11:10.5]} 24. hxg3 {[%clk 0:13:27.7]} 24... gxf4 {[%clk 0:09:41.3]} 25. Nxf4 {[%clk 0:12:45]} 25... Bxf4+ {[%clk 0:09:35.7]} 26. gxf4 {[%clk 0:12:36.5]} 26... f5 {[%clk 0:08:36.6]} 27. Re5 {[%clk 0:11:06]} 27... b6 {[%clk 0:08:32.5]} 28. c4 {[%clk 0:11:01.5]} 28... Rh4 {[%clk 0:07:56.4]} 29. d5 {[%clk 0:10:34.5]} 29... cxd5 {[%clk 0:07:36.7]} 30. cxd5 {[%clk 0:10:33.6]} 30... Rxf4 {[%clk 0:06:55.5]} 31. dxe6+ {[%clk 0:09:56.6]} 31... Kf6 {[%clk 0:06:51.5]} 32. b3 {[%clk 0:09:24]} 32... Rf1 {[%clk 0:05:49.1]} 33. Kd2 {[%clk 0:06:27.1]} 33... Rxe1 {[%clk 0:05:44.5]} 34. Rxe1 {[%clk 0:06:22.5]} 34... Rxe6 {[%clk 0:05:44.3]} 35. Rb1 {[%clk 0:06:00.5]} 35... f4 {[%clk 0:04:18.5]} 36. b4 {[%clk 0:05:54.7]} 36... Re4 {[%clk 0:03:34.1]} 37. bxa5 {[%clk 0:05:54.4]} 37... bxa5 {[%clk 0:03:35.4]} 38. Rb6+ {[%clk 0:04:02.1]} 38... Ke7 {[%clk 0:03:29.1]} 39. Rb5 {[%clk 0:03:58.8]} 39... Rxa4 {[%clk 0:03:21.9]} 40. Kc3 {[%clk 0:03:27.3]} 40... Ke6 {[%clk 0:02:49.6]} 41. Kb3 {[%clk 0:03:04.8]} 41... Rb4+ {[%clk 0:02:50.1]} 42. Rxb4 {[%clk 0:03:04.5]} 42... axb4 {[%clk 0:02:52]} 43. Kxb4 {[%clk 0:03:05.5]} 43... f3 {[%clk 0:02:53.8]} 0-1